fUST/lending_fUST_20240927
["ID","MTS","AMOUNT","RATE_DAILY","PERIOD"]
[339259233,1727412641012,-500.0,0.00019452,2]
[339259234,1727412641021,-500.0,0.00019452,2]
[339259235,1727412641030,-529.61,0.00019452,2]
[339259236,1727412641039,-500.0,0.00019452,2]
[339259237,1727412641049,-605.04087207,0.00019452,2]
[339259238,1727412641058,-2074.18,0.00019452,2]
[339259239,1727412641067,-500.0,0.00019452,2]
[339259240,1727412641077,-358.48525124,0.00019452,2]
[339259241,1727412641087,-504.86259437,0.00019452,2]
[339259242,1727412641097,-500.0,0.00019452,2]
[339259243,1727412641106,-500.0,0.00019452,2]
[339259244,1727412641115,-500.0,0.00019452,2]
[339259245,1727412641125,-524.72,0.00019452,2]
[339259246,1727412641136,-500.0,0.00019452,2]
[339259247,1727412641145,-5000.0,0.00019452,2]
[339259248,1727412641155,-691.56,0.00019452,2]
[339259249,1727412641165,-17953.18,0.00019452,2]
[339259250,1727412641174,-579.09297161,0.00019452,2]
[339259251,1727412641184,-3384.63,0.00019452,2]
[339259252,1727412641195,-500.5314839,0.00019452,2]
[339259253,1727412641204,-500.0,0.00019452,2]
[339259254,1727412641213,-209.1374178,0.00019507,2]
[339259255,1727412641222,-415.6767509,0.00019507,2]
[339259256,1727412641233,-81761.9128036,0.00019591,3]
[339259257,1727412641242,-55421.4137438,0.00019591,3]
[339259258,1727412641252,-4124.07675378,0.00019601,2]
[339259259,1727412641261,-2815.69662688,0.00019601,2]
[339259260,1727412641270,-5410.71254296,0.00019601,2]
[339259274,1727412643831,-955.0,0.00019601,2]
[339259321,1727412646549,-2440.45,0.00019601,2]
[339259334,1727413491223,1000.0,0.00021,60]
[339259335,1727413542171,198.0,0.00014111,10]
[339259336,1727413551123,-498.4201839,0.00017993,2]
[339259337,1727413551148,-250.0,0.00018074,2]
[339259338,1727413551170,-250.0,0.00018124,2]
[339259339,1727413551194,-250.0,0.00018173,2]
[339259340,1727413551216,-196.740455,0.00018186,2]
[339259341,1727413551240,-250.0,0.00018223,2]
[339259342,1727413551266,-157.09488198,0.00018272,2]
[339259343,1727413601227,-92.90511802,0.00018272,2]
[339259344,1727413601249,-250.0,0.00018322,2]
[339259345,1727413601271,-55.10094725,0.00018372,2]
[339259346,1727413628138,-194.89905275,0.00018372,2]
[339259347,1727413628161,-250.0,0.00018421,2]
[339259348,1727413628183,-250.0,0.00018471,2]
[339259349,1727413628205,-250.0,0.0001852,2]
[339259350,1727413628227,-250.0,0.0001857,2]
[339259351,1727413628250,-250.0,0.00018619,2]
[339259352,1727413628274,-480.29235279,0.0001862,2]
[339259353,1727413629153,-350.70971784,0.0001862,2]
[339259354,1727413643115,-504.05075501,0.0001862,2]
[339259355,1727413643139,-250.0,0.00018669,2]
[339259356,1727413643163,-250.0,0.00018718,2]
[339259357,1727413643185,-68.12949974,0.00018768,2]
[339259444,1727413833153,196.740455,0.00018003,2]
[339259505,1727413839238,-1006.29911923,0.00018668,2]
[339259506,1727413839251,-761.66098135,0.00018668,2]
[339259507,1727413839261,-181.87050026,0.00018768,2]
[339259508,1727413839271,-250.0,0.00018818,2]
[339259509,1727413839281,-250.0,0.00018867,2]
[339259510,1727413839291,-6967.20108474,0.0001889,2]
[339259511,1727413839300,-250.0,0.00018917,2]
[339259512,1727413839310,-250.0,0.00018966,2]
[339259513,1727413839319,-250.0,0.00019016,2]
[339259514,1727413839328,-300.0,0.00019074,2]
[339259515,1727413839338,-300.0,0.00019075,2]
[339259516,1727413839348,-501.66996351,0.00019173,2]
[339259517,1727413839359,-236.60130828,0.00019177,2]
[339259518,1727413839368,-230.74659315,0.00019177,2]
[339259519,1727413839378,-500.0,0.00019177,2]
[339259520,1727413839389,-585.42,0.00019178,2]
[339259521,1727413839399,-500.0,0.00019178,2]
[339259522,1727413839413,-1068.7,0.00019178,2]
[339259523,1727413839425,-500.0,0.00019178,2]
[339259524,1727413839436,-1236.93,0.00019178,2]
[339259525,1727413839446,-552.07,0.00019178,2]
[339259526,1727413839456,-500.0,0.00019178,2]
[339259527,1727413839465,-1044.73,0.00019178,2]
[339259528,1727413839475,-500.29800051,0.00019178,2]
[339259529,1727413839485,-500.0,0.00019178,2]
[339259530,1727413839496,-377.7251503,0.00019178,2]
[339259531,1727413839506,-1000.0,0.00019178,2]
[339259532,1727413839515,-500.0,0.00019178,2]
[339259533,1727413839525,-500.5314839,0.00019178,2]
[339259534,1727413839535,-500.0,0.00019178,2]
[339259535,1727413839544,-500.0,0.00019178,2]
[339259536,1727413839554,-500.0,0.00019178,2]
[339259537,1727413839563,-500.0,0.00019178,2]
[339259538,1727413839572,-500.0,0.00019178,2]
[339259539,1727413839581,-1886.2,0.00019178,2]
[339259540,1727413839590,-500.0,0.00019178,2]
[339259541,1727413839599,-500.0,0.00019178,2]
[339259542,1727413839608,-500.0,0.00019178,2]
[339259543,1727413839618,-200.0,0.00019178,2]
[339259544,1727413839627,-500.0,0.00019178,2]
[339259545,1727413839636,-507.55,0.00019178,2]
[339259546,1727413839646,-605.04087207,0.00019178,2]
[339259547,1727413839655,-1495.5,0.00019178,2]
[339259548,1727413839665,-500.0,0.00019178,2]
[339259549,1727413839674,-358.48525124,0.00019178,2]
[339259550,1727413839683,-504.86259437,0.00019178,2]
[339259551,1727413839693,-500.0,0.00019178,2]
[339259552,1727413839703,-325.57776313,0.00019178,2]
[339259553,1727413839712,-500.0,0.00019178,2]
[339259554,1727413839722,-251.7110779,0.00019178,2]
[339259555,1727413839731,-500.0,0.00019178,2]
[339259556,1727413839741,-1987.76,0.00019178,2]
[339259557,1727413839751,-602.6383402,0.00019178,2]
[339259558,1727413839760,-500.0,0.00019178,2]
[339259559,1727413839769,-500.0,0.00019178,2]
[339259560,1727413839778,-500.0,0.00019178,2]
[339259561,1727413839788,-500.0,0.00019178,2]
[339259562,1727413839798,-5000.0,0.00019178,2]
[339259563,1727413839807,-502.86,0.00019178,2]
[339259564,1727413839817,-662.74,0.00019178,2]
[339259565,1727413839827,-17254.09,0.00019178,2]
[339259566,1727413839836,-579.09297161,0.00019178,2]
[339259567,1727413839846,-3243.6,0.00019178,2]
[339259568,1727413839855,-500.0,0.00019178,2]
[339259569,1727413839868,-500.0,0.00019178,2]
[339259570,1727413839878,-630.12290026,0.00019178,2]
[339259571,1727413839887,-158.160284,0.00019178,2]
[339259572,1727413839898,-306.424126,0.000192,2]
[339259573,1727413839908,-196.740455,0.00019373,2]
[339259574,1727413839919,-363.52,0.00019422,3]
[339259575,1727413839928,-241.04641663,0.00019431,2]
[339259576,1727413839938,-179.35144111,0.00019431,2]
[339259577,1727413839951,-500.0,0.00019431,2]
[339259578,1727413839961,-382.67729801,0.00019431,2]
[339259579,1727413839972,-514.82412496,0.00019431,2]
[339259580,1727413839982,-500.0,0.00019431,2]
[339259581,1727413839994,-340.52409491,0.00019431,2]
[339259582,1727413840004,-500.0,0.00019431,2]
[339259583,1727413840014,-500.0,0.00019431,2]
[339259584,1727413840024,-32692.4083284,0.00019432,3]
[339259585,1727413840033,-43899.4793476,0.00019442,3]
[339259586,1727413840043,-32692.4083284,0.00019442,3]
[339259587,1727413840053,-585.42,0.00019452,2]
[339259588,1727413840062,-500.0,0.00019452,2]
[339259589,1727413840072,-1068.7,0.00019452,2]
[339259590,1727413840081,-500.0,0.00019452,2]
[339259591,1727413840090,-1236.93,0.00019452,2]
[339259592,1727413840100,-552.07,0.00019452,2]
[339259593,1727413840109,-1044.73,0.00019452,2]
[339259594,1727413840119,-500.0,0.00019452,2]
[339259595,1727413840128,-1000.0,0.00019452,2]
[339259596,1727413840138,-606.19330133,0.00019452,2]
[339259597,1727413840151,-500.0,0.00019452,2]
[339259598,1727413840160,-500.0,0.00019452,2]
[339259599,1727413840170,-500.0,0.00019452,2]
[339259600,1727413840179,-1886.2,0.00019452,2]
[339259602,1727413840189,-500.0,0.00019452,2]
[339259604,1727413840199,-200.0,0.00019452,2]
[339259606,1727413840208,-507.55,0.00019452,2]
[339259608,1727413840218,-1495.5,0.00019452,2]
[339259610,1727413840229,-500.0,0.00019452,2]
[339259612,1727413840238,-500.0,0.00019452,2]
[339259614,1727413840249,-1987.76,0.00019452,2]
[339259616,1727413840258,-500.0,0.00019452,2]
[339259617,1727413840268,-500.0,0.00019452,2]
[339259618,1727413840277,-5000.0,0.00019452,2]
[339259619,1727413840287,-502.86,0.00019452,2]
[339259621,1727413840297,-662.74,0.00019452,2]
[339259622,1727413840306,-17254.09,0.00019452,2]
[339259623,1727413840315,-3243.6,0.00019452,2]
[339259624,1727413840325,-500.0,0.00019452,2]
[339259625,1727413840335,-500.0,0.00019452,2]
[339259626,1727413840344,-500.0,0.00019473,2]
[339259627,1727413840354,-1000.0,0.00019606,2]
[339259629,1727413840363,-1466.18298167,0.00019653,10]
[339259630,1727413840374,-500.0,0.00019673,2]
[339259631,1727413840383,-500.0,0.00019673,2]
[339259632,1727413840394,-32692.4083284,0.00019677,3]
[339259633,1727413840405,-43899.4793476,0.00019686,3]
[339259634,1727413840415,-153.1610119,0.000197,2]
[339259636,1727413840426,-32692.4083284,0.00019706,3]
[339259637,1727413840436,-500.0,0.00019715,2]
[339259638,1727413840447,-6229.61764699,0.00019716,3]
[339259640,1727413841573,-6967.20108474,0.00018993,2]
[339259641,1727413841583,-6967.20108476,0.00019351,2]
[339259642,1727413841592,-37669.86170061,0.00019716,3]
[339259643,1727413841601,-32692.4083284,0.00019716,3]
[339259644,1727413841611,-585.42,0.00019726,2]
[339259645,1727413841620,-227.93339661,0.00019726,2]
[339259646,1727413841630,-1068.7,0.00019726,2]
[339259647,1727413841639,-181.95433877,0.00019726,2]
[339259648,1727413841648,-1236.93,0.00019726,2]
[339259649,1727413841658,-552.07,0.00019726,2]
[339259650,1727413841668,-1044.73,0.00019726,2]
[339259651,1727413841677,-233.94,0.00019726,2]
[339259652,1727413841686,-1000.0,0.00019726,2]
[339259653,1727413841696,-500.0,0.00019726,2]
[339259654,1727413841707,-1886.2,0.00019726,2]
[339259655,1727413841718,-200.0,0.00019726,2]
[339259656,1727413841727,-507.55,0.00019726,2]
[339259657,1727413841739,-1495.5,0.00019726,2]
[339259658,1727413841750,-500.0,0.00019726,2]
[339259659,1727413841759,-614.41819999,0.00019726,2]
[339259660,1727413841770,-1987.76,0.00019726,2]
[339259661,1727413841781,-541.25309905,0.00019726,2]
[339259662,1727413841792,-500.0,0.00019726,2]
[339259663,1727413841802,-5000.0,0.00019726,2]
[339259664,1727413841812,-502.86,0.00019726,2]
[339259665,1727413841824,-662.74,0.00019726,2]
[339259666,1727413841834,-17254.09,0.00019726,2]
[339259667,1727413841846,-151.0,0.00019726,2]
[339259668,1727413841856,-3243.6,0.00019726,2]
[339259669,1727413841866,-153.99012,0.00019726,2]
[339259670,1727413841876,-500.0,0.00019726,2]
[339259671,1727413841885,-500.0,0.00019726,2]
[339259672,1727413841895,-161.286996,0.00019726,2]
[339259673,1727413841905,-150.0,0.00019756,2]
[339259674,1727413841914,-3146.43008502,0.00019788,2]
[339259675,1727413841924,-2815.69662688,0.0001986,2]
[339259676,1727413841933,-4124.07675378,0.0001986,2]
[339259677,1727413841943,-32692.4083284,0.0001986,3]
[339259678,1727413841952,-306.0,0.00019863,2]
[339259679,1727413841962,-151.0,0.0001987,2]
[339259680,1727413841972,-21682.09743303,0.0001987,3]
[339259690,1727413843702,-44.22289614,0.0001987,3]
[339259691,1727413843878,-2234.9259288,0.0001987,3]
[339259705,1727414648260,10000.0,0.00014111,2]
[339259706,1727414654722,10000.0,0.00014111,2]
[339259707,1727414661289,10000.0,0.00014111,2]
[339259708,1727414667285,10000.0,0.00014111,2]
[339259709,1727414672770,10000.0,0.00014111,2]
[339259712,1727414839141,-761.66098135,0.000159,2]
[339259713,1727414839165,-3000.0,0.00016,2]
[339259714,1727414839188,-3000.0,0.0001601,2]
[339259715,1727414839217,-65.06929664,0.00016019,2]
[339259716,1727414842142,-234.93070336,0.00016019,2]
[339259717,1727414842165,-20.49486353,0.00016019,2]
[339259718,1727414947111,-1833.62294658,0.0001602,2]
[339259719,1727414952136,-1086.16523614,0.0001602,2]
[339259720,1727414954114,-80.21181728,0.0001602,2]
[339259721,1727414954136,-3000.0,0.0001603,2]
[339259722,1727414954160,-300.0,0.00016039,2]
[339259723,1727414954183,-300.0,0.00016039,2]
[339259724,1727414954206,-5553.696166,0.0001604,2]
[339259725,1727414954227,-495.74945265,0.00016046,2]
[339259726,1727414965357,-576.43080205,0.00016046,2]
[339259727,1727414965379,-1804.85577772,0.00016088,2]
[339259728,1727414965404,-724.65698918,0.00016088,2]
[339259729,1727414965426,-160.256144,0.00016649,2]
[339259730,1727414965447,-226.369277,0.00016667,2]
[339259731,1727414965468,-160.256144,0.00016736,2]
[339259732,1727414965490,-160.256144,0.00016823,2]
[339259733,1727414965512,-160.256144,0.0001691,2]
[339259734,1727414965535,-160.256144,0.00016996,2]
[339259735,1727414965559,-160.256144,0.00017083,2]
[339259736,1727414965582,-160.256144,0.0001717,2]
[339259737,1727414965606,-160.256144,0.00017257,2]
[339259738,1727414965629,-160.256144,0.00017343,2]
[339259739,1727414966145,-160.256144,0.0001743,2]
[339259740,1727414967096,-160.256144,0.00017517,2]
[339259741,1727414967119,-420.0,0.00017535,2]
[339259742,1727414967142,-420.0,0.00017643,2]
[339259743,1727414967163,-226.369277,0.00018037,2]
[339259744,1727414967185,-2007.153363,0.0001841,2]
[339259745,1727414969138,-1444.948894,0.0001841,2]
[339259874,1727415038064,-186.947172,0.00018162,2]
[339259875,1727415038075,-3561.62603008,0.0001841,2]
[339259876,1727415038084,-300.0,0.00018662,2]
[339259877,1727415038093,-300.0,0.00018662,2]
[339259878,1727415038103,-7013.72828708,0.00018663,2]
[339259879,1727415038123,-150.0,0.00018925,2]
[339259880,1727415038134,-4747.56529149,0.00019,2]
[339259881,1727415038144,-7013.72828708,0.00019058,2]
[339259882,1727415038154,-194.63628536,0.00019063,2]
[339259883,1727415038166,-1000.0,0.00019068,2]
[339259884,1727415038177,-194.63628536,0.0001913,2]
[339259885,1727415038189,-281.24,0.00019153,3]
[339259886,1727415038199,-843.75,0.00019153,3]
[339259887,1727415038209,-500.0,0.00019161,2]
[339259888,1727415038218,-230.74659315,0.00019161,2]
[339259889,1727415038228,-236.60130828,0.00019161,2]
[339259890,1727415038240,-500.0,0.00019162,2]
[339259891,1727415038250,-237.6155573,0.00019162,2]
[339259892,1727415038260,-293.99735824,0.00019162,2]
[339259893,1727415038269,-500.0,0.00019162,2]
[339259894,1727415038279,-407.45519698,0.00019162,2]
[339259895,1727415038289,-632.01464727,0.00019162,2]
[339259896,1727415038299,-500.0,0.00019162,2]
[339259897,1727415038308,-500.0,0.00019162,2]
[339259898,1727415038318,-490.52409491,0.00019162,2]
[339259899,1727415038327,-43785.5219064,0.00019163,3]
[339259900,1727415038337,-29933.9863757,0.00019163,3]
[339259901,1727415038347,-87571.0438128,0.00019168,3]
[339259902,1727415038358,-59867.9727514,0.00019168,3]
[339259903,1727415038367,-501.66996351,0.00019173,2]
[339259904,1727415038376,-500.0,0.00019173,2]
[339259905,1727415038385,-625.94317381,0.00019173,2]
[339259906,1727415038394,-500.0,0.00019173,2]
[339259907,1727415038404,-500.0,0.00019173,2]
[339259908,1727415038414,-298.00801653,0.00019173,2]
[339259909,1727415038423,-459.29438135,0.00019173,2]
[339259910,1727415038433,-500.0,0.00019173,2]
[339259911,1727415038442,-500.0,0.00019173,2]
[339259912,1727415038452,-500.0,0.00019173,2]
[339259913,1727415038461,-500.0,0.00019178,2]
[339259914,1727415038470,-1930.83,0.00019178,2]
[339259915,1727415038480,-500.0,0.00019178,2]
[339259916,1727415038490,-500.0,0.00019178,2]
[339259917,1727415038499,-500.0,0.00019178,2]
[339259918,1727415038508,-200.0,0.00019178,2]
[339259919,1727415038517,-507.55,0.00019178,2]
[339259920,1727415038527,-500.0,0.00019178,2]
[339259921,1727415038536,-605.04087207,0.00019178,2]
[339259922,1727415038545,-500.0,0.00019178,2]
[339259923,1727415038555,-358.48525124,0.00019178,2]
[339259924,1727415038565,-504.86259437,0.00019178,2]
[339259925,1727415038574,-500.0,0.00019178,2]
[339259926,1727415038583,-500.0,0.00019178,2]
[339259927,1727415038592,-500.0,0.00019178,2]
[339259928,1727415038602,-505.71985216,0.00019178,2]
[339259929,1727415038611,-338.33844084,0.00019178,2]
[339259930,1727415038620,-504.59739924,0.00019178,2]
[339259931,1727415038630,-500.0,0.00019178,2]
[339259932,1727415038640,-500.0,0.00019178,2]
[339259933,1727415038651,-500.0,0.00019178,2]
[339259934,1727415038662,-531.63434114,0.00019178,2]
[339259935,1727415038671,-504.89945901,0.00019178,2]
[339259936,1727415038680,-500.0,0.00019178,2]
[339259937,1727415038690,-1495.5,0.00019178,2]
[339259938,1727415038699,-500.0,0.00019178,2]
[339259939,1727415038708,-500.0,0.00019178,2]
[339259940,1727415038718,-515.77743723,0.00019178,2]
[339259941,1727415038732,-500.0,0.00019178,2]
[339259942,1727415038741,-500.0,0.00019178,2]
[339259943,1727415038751,-500.0,0.00019178,2]
[339259944,1727415038761,-500.0,0.00019178,2]
[339259945,1727415038770,-500.0,0.00019178,2]
[339259946,1727415038780,-640.18445733,0.00019178,2]
[339259947,1727415038789,-509.34441419,0.00019178,2]
[339259948,1727415038799,-505.39575549,0.00019178,2]
[339259949,1727415038809,-500.0,0.00019178,2]
[339259950,1727415038819,-525.11117407,0.00019178,2]
[339259951,1727415038828,-500.0,0.00019178,2]
[339259952,1727415038838,-509.91996726,0.00019178,2]
[339259953,1727415038850,-500.0,0.00019178,2]
[339259954,1727415038859,-500.0,0.00019178,2]
[339259955,1727415038869,-630.12290026,0.00019178,2]
[339259956,1727415038879,-325.57776313,0.00019178,2]
[339259957,1727415038888,-585.42,0.00019178,2]
[339259958,1727415038898,-500.0,0.00019178,2]
[339259959,1727415038907,-554.31378775,0.00019178,2]
[339259960,1727415038919,-1068.7,0.00019178,2]
[339259961,1727415038929,-542.23158736,0.00019178,2]
[339259962,1727415038940,-500.0,0.00019178,2]
[339259963,1727415038950,-520.02277408,0.00019178,2]
[339259964,1727415038960,-1236.93,0.00019178,2]
[339259965,1727415038969,-500.0,0.00019178,2]
[339259966,1727415038979,-522.83889569,0.00019178,2]
[339259967,1727415038988,-512.27629729,0.00019178,2]
[339259968,1727415038998,-300.25769185,0.00019178,2]
[339259969,1727415039007,-544.43647367,0.00019178,2]
[339259970,1727415039017,-636.20905029,0.00019178,2]
[339259971,1727415039028,-513.21772401,0.00019178,2]
[339259972,1727415039037,-502.12015709,0.00019178,2]
[339259973,1727415039048,-516.01800245,0.00019178,2]
[339259974,1727415039059,-507.91041414,0.00019178,2]
[339259975,1727415039069,-552.07,0.00019178,2]
[339259976,1727415039078,-504.69552132,0.00019178,2]
[339259977,1727415039088,-507.22033891,0.00019178,2]
[339259978,1727415039097,-500.0,0.00019178,2]
[339259979,1727415039109,-589.2748333,0.00019178,2]
[339259980,1727415039119,-505.8978561,0.00019178,2]
[339259981,1727415039128,-509.33291434,0.00019178,2]
[339259982,1727415039138,-500.0,0.00019178,2]
[339259983,1727415039148,-500.0,0.00019178,2]
[339259984,1727415039158,-500.29800051,0.00019178,2]
[339259985,1727415039167,-500.0,0.00019178,2]
[339259986,1727415039177,-550.25,0.00019178,2]
[339259987,1727415039186,-500.0,0.00019178,2]
[339259988,1727415039195,-636.52,0.00019178,2]
[339259989,1727415039205,-1044.73,0.00019178,2]
[339259990,1727415039214,-506.2286542,0.00019178,2]
[339259991,1727415039224,-539.19395915,0.00019178,2]
[339259992,1727415039233,-505.69260725,0.00019178,2]
[339259993,1727415039243,-641.03463898,0.00019178,2]
[339259994,1727415039253,-313.4690316,0.00019178,2]
[339259995,1727415039263,-500.0,0.00019178,2]
[339259996,1727415039272,-1987.76,0.00019178,2]
[339259997,1727415039282,-500.0,0.00019178,2]
[339259998,1727415039291,-291.06983359,0.00019178,2]
[339259999,1727415039300,-500.0,0.00019178,2]
[339260000,1727415039310,-500.0,0.00019178,2]
[339260001,1727415039320,-363.51621745,0.00019178,2]
[339260002,1727415039329,-500.0,0.00019178,2]
[339260003,1727415039341,-500.0,0.00019178,2]
[339260005,1727415039352,-500.0,0.00019178,2]
[339260007,1727415039362,-500.0,0.00019178,2]
[339260009,1727415039371,-500.0,0.00019178,2]
[339260011,1727415039380,-500.0,0.00019178,2]
[339260013,1727415039389,-500.0,0.00019178,2]
[339260015,1727415039399,-525.59760991,0.00019178,2]
[339260017,1727415039408,-525.19,0.00019178,2]
[339260018,1727415039417,-500.0,0.00019178,2]
[339260019,1727415039426,-500.0,0.00019178,2]
[339260020,1727415039435,-500.0,0.00019178,2]
[339260021,1727415039444,-500.0,0.00019178,2]
[339260022,1727415039454,-546.50690902,0.00019178,2]
[339260023,1727415039464,-501.83280177,0.00019178,2]
[339260024,1727415039473,-5000.0,0.00019178,2]
[339260025,1727415039483,-500.0,0.00019178,2]
[339260026,1727415039492,-662.74,0.00019178,2]
[339260027,1727415039501,-500.0,0.00019178,2]
[339260028,1727415039510,-500.0,0.00019178,2]
[339260030,1727415039519,-377.7251503,0.00019178,2]
[339260031,1727415039530,-526.3427628,0.00019178,2]
[339260032,1727415039539,-1000.0,0.00019178,2]
[339260033,1727415039549,-500.0,0.00019178,2]
[339260034,1727415039558,-579.09297161,0.00019178,2]
[339260035,1727415039568,-500.0,0.00019178,2]
[339260036,1727415039578,-500.0,0.00019178,2]
[339260038,1727415039587,-500.15549867,0.00019178,2]
[339260040,1727415039597,-500.0,0.00019178,2]
[339260042,1727415039611,-151.0,0.00019178,2]
[339260043,1727415039621,-500.0,0.00019178,2]
[339260044,1727415039630,-490.85,0.00019178,2]
[339260045,1727415039640,-151.0,0.00019178,2]
[339260047,1727415039651,-151.0,0.00019178,2]
[339260048,1727415039660,-500.0,0.00019178,2]
[339260049,1727415039669,-18690.03,0.00019178,2]
[339260050,1727415039678,-151.0,0.00019178,2]
[339260051,1727415039687,-500.5314839,0.00019178,2]
[339260052,1727415039697,-500.0,0.00019178,2]
[339260053,1727415039706,-3443.8,0.00019178,2]
[339260055,1727415039716,-180.583695,0.00019178,2]
[339260057,1727415039726,-158.1603112,0.00019178,2]
[339260058,1727415039736,-209.1374178,0.00019178,2]
[339260059,1727415039746,-415.6767509,0.00019178,2]
[339260060,1727415039756,-194.63628536,0.00019198,2]
[339260061,1727415039765,-7013.72828708,0.00019257,2]
[339260062,1727415039776,-194.63628536,0.00019265,2]
[339260064,1727415039786,-153.0,0.00019315,2]
[339260066,1727415039795,-153.0,0.00019315,2]
[339260067,1727415039805,-153.0,0.00019315,2]
[339260068,1727415039815,-194.63628536,0.00019332,2]
[339260069,1727415039824,-151.26606185,0.00019336,2]
[339260070,1727415039834,-3146.43008502,0.00019351,2]
[339260071,1727415039843,-465.02686267,0.000194,2]
[339260072,1727415039858,-151.0,0.00019422,2]
[339260073,1727415039867,-151.0,0.00019422,2]
[339260074,1727415039877,-151.0,0.00019422,2]
[339260075,1727415039887,-151.0,0.00019422,2]
[339260076,1727415039897,-17022.2015808,0.00019422,3]
[339260077,1727415039912,-3218.30441574,0.00019422,3]
[339260078,1727415039925,-3262.8,0.00019422,3]
[339260079,1727415039942,-20282.21590986,0.00019422,3]
[339260080,1727415039953,-17567.14373439,0.00019422,3]
[339260081,1727415040245,-12366.84264131,0.00019422,3]
[339260082,1727415040255,-151.0,0.00019432,2]
[339260083,1727415040265,-151.0,0.00019432,2]
[339260084,1727415040276,-151.0,0.00019432,2]
[339260085,1727415040285,-209.16246,0.00019432,2]
[339260086,1727415040295,-43785.5219064,0.00019432,3]
[339260087,1727415040305,-29933.9863757,0.00019432,3]
[339260088,1727415040314,-151.0,0.00019442,2]
[339260089,1727415040324,-151.0,0.00019442,2]
[339260090,1727415040333,-151.0,0.00019442,2]
[339260091,1727415040343,-43785.5219064,0.00019442,3]
[339260092,1727415040356,-29933.9863757,0.00019442,3]
[339260093,1727415040365,-652.07533208,0.00019451,2]
[339260094,1727415040375,-4124.07675378,0.00019452,2]
[339260095,1727415040386,-2815.69662688,0.00019452,2]
[339260096,1727415040395,-1930.83,0.00019452,2]
[339260097,1727415040405,-181.95433877,0.00019452,2]
[339260098,1727415040414,-200.0,0.00019452,2]
[339260099,1727415040424,-507.55,0.00019452,2]
[339260100,1727415040433,-500.0,0.00019452,2]
[339260101,1727415040443,-500.0,0.00019452,2]
[339260102,1727415040452,-1495.5,0.00019452,2]
[339260103,1727415040461,-500.0,0.00019452,2]
[339260104,1727415040471,-464.6610779,0.00019452,2]
[339260105,1727415040480,-602.6383402,0.00019452,2]
[339260106,1727415040490,-500.0,0.00019452,2]
[339260107,1727415040500,-500.0,0.00019452,2]
[339260108,1727415040509,-151.0,0.00019452,2]
[339260109,1727415040519,-151.0,0.00019452,2]
[339260110,1727415040528,-164.399626,0.00019452,2]
[339260111,1727415040538,-164.399626,0.00019452,2]
[339260112,1727415040547,-585.42,0.00019452,2]
[339260113,1727415040557,-500.0,0.00019452,2]
[339260114,1727415040566,-1068.7,0.00019452,2]
[339260115,1727415040577,-151.0,0.00019452,2]
[339260116,1727415040586,-151.0,0.00019452,2]
[339260117,1727415040596,-1236.93,0.00019452,2]
[339260118,1727415040608,-151.0,0.00019452,2]
[339260119,1727415040618,-151.0,0.00019452,2]
[339260120,1727415040627,-552.07,0.00019452,2]
[339260121,1727415040637,-500.0,0.00019452,2]
[339260122,1727415040649,-189.84,0.00019452,2]
[339260123,1727415040658,-1044.73,0.00019452,2]
[339260124,1727415040670,-1987.76,0.00019452,2]
[339260125,1727415040680,-156.37,0.00019452,2]
[339260126,1727415040691,-500.0,0.00019452,2]
[339260127,1727415040700,-500.0,0.00019452,2]
[339260128,1727415040709,-260.090257,0.00019452,2]
[339260129,1727415040720,-151.0,0.00019452,2]